[Event "Titled Tuesday Blitz June 14 Late 2022"]
[White "Fishbein, Mitch"]
[Black "Ambartsumova, Karina"]
[WhiteFideId "30922917"]
[BlackFideId "4166299"]
[WhiteElo "1939"]
[BlackElo "2262"]
[Result "1-0"]
[Round "05"]
[TimeControl "180+1"]
[Date "2022.06.15"]
[WhiteClock "0:00:03"]
[BlackClock "0:00:02"]

1. e4 {[%clk 0:03:00]}  e5 {[%clk 0:02:58]} 2. Nf3 {[%clk 0:02:58]}  Nc6 {[%clk 0:02:58]} 3. Bc4 {[%clk 0:02:54]}  Nf6 {[%clk 0:02:55]} 4. d3 {[%clk 0:02:52]}  h6 {[%clk 0:02:54]} 5. O-O {[%clk 0:02:46]}  g5 {[%clk 0:02:53]} 6. c3 {[%clk 0:02:44]}  Bg7 {[%clk 0:02:48]} 7. d4 {[%clk 0:02:35]}  Nxe4 {[%clk 0:02:33]} 8. dxe5 {[%clk 0:02:30]}  Nc5 {[%clk 0:02:16]} 9. Qd5 {[%clk 0:01:58]}  Ne6 {[%clk 0:02:15]} 10. Be3 {[%clk 0:01:56]}  O-O {[%clk 0:02:14]} 11. Bd3 {[%clk 0:01:52]}  f5 {[%clk 0:01:57]} 12. exf6 {[%clk 0:01:46]}  Qxf6 {[%clk 0:01:56]} 13. Nbd2 {[%clk 0:01:40]}  d6 {[%clk 0:01:49]} 14. Ne4 {[%clk 0:01:39]}  Qf7 {[%clk 0:01:45]} 15. Bc4 {[%clk 0:01:32]}  Ne7 {[%clk 0:01:34]} 16. Qd2 {[%clk 0:01:08]}  Nf5 {[%clk 0:01:28]} 17. Rae1 {[%clk 0:00:49]}  Kh8 {[%clk 0:01:17]} 18. Bxg5 {[%clk 0:00:44]}  hxg5 {[%clk 0:01:18]} 19. Nexg5 {[%clk 0:00:44]}  Qg6 {[%clk 0:01:12]} 20. Bxe6 {[%clk 0:00:39]}  Bf6 {[%clk 0:01:07]} 21. Bxc8 {[%clk 0:00:33]}  Raxc8 {[%clk 0:01:06]} 22. Re6 {[%clk 0:00:34]}  Rg8 {[%clk 0:00:57]} 23. Qd3 {[%clk 0:00:27]}  Rcf8 {[%clk 0:00:41]} 24. g3 {[%clk 0:00:25]}  Ne7 {[%clk 0:00:18]} 25. Qxg6 {[%clk 0:00:20]}  Nxg6 {[%clk 0:00:18]} 26. Ne4 {[%clk 0:00:12]}  Bd8 {[%clk 0:00:18]} 27. Kg2 {[%clk 0:00:11]}  Re8 {[%clk 0:00:15]} 28. Rxe8 {[%clk 0:00:10]}  Rxe8 {[%clk 0:00:15]} 29. Ned2 {[%clk 0:00:11]}  Rg8 {[%clk 0:00:14]} 30. Re1 {[%clk 0:00:11]}  Nf4+ {[%clk 0:00:14]} 31. Kf1 {[%clk 0:00:11]}  Nd3 {[%clk 0:00:15]} 32. Rb1 {[%clk 0:00:12]}  Bf6 {[%clk 0:00:14]} 33. Ne1 {[%clk 0:00:11]}  Nc5 {[%clk 0:00:14]} 34. Nb3 {[%clk 0:00:11]}  Na4 {[%clk 0:00:12]} 35. Nd3 {[%clk 0:00:10]}  Re8 {[%clk 0:00:12]} 36. Nd4 {[%clk 0:00:10]}  Bxd4 {[%clk 0:00:11]} 37. cxd4 {[%clk 0:00:11]}  Re4 {[%clk 0:00:11]} 38. b3 {[%clk 0:00:07]}  Nb6 {[%clk 0:00:10]} 39. Rc1 {[%clk 0:00:06]}  c6 {[%clk 0:00:10]} 40. Nf4 {[%clk 0:00:05]}  Rxd4 {[%clk 0:00:10]} 41. Re1 {[%clk 0:00:05]}  Rd2 {[%clk 0:00:09]} 42. Re8+ {[%clk 0:00:05]}  Kg7 {[%clk 0:00:09]} 43. Re7+ {[%clk 0:00:06]}  Kf6 {[%clk 0:00:09]} 44. Rxb7 {[%clk 0:00:07]}  Rxa2 {[%clk 0:00:09]} 45. h4 {[%clk 0:00:06]}  d5 {[%clk 0:00:09]} 46. h5 {[%clk 0:00:07]}  Ra1+ {[%clk 0:00:08]} 47. Kg2 {[%clk 0:00:07]}  Kg5 {[%clk 0:00:08]} 48. Rg7+ {[%clk 0:00:05]}  Kh6 {[%clk 0:00:08]} 49. Rg6+ {[%clk 0:00:06]}  Kh7 {[%clk 0:00:08]} 50. Ne6 {[%clk 0:00:06]}  Rb1 {[%clk 0:00:06]} 51. Nf8+ {[%clk 0:00:06]}  Kh8 {[%clk 0:00:06]} 52. h6 {[%clk 0:00:06]}  Nc8 {[%clk 0:00:04]} 53. Rg7 {[%clk 0:00:03]}  Re1 {[%clk 0:00:02]} 54. Ng6# {[%clk 0:00:03]} 1-0


[Site "https://www.chess.com"]

[Event "Titled Tuesday Blitz June 14 Late 2022"]
[White "Gurevich, Dmitry"]
[Black "Vasquez Schroeder, Rodrigo"]
[WhiteFideId "2000407"]
[BlackFideId "3400042"]
[WhiteElo "2506"]
[BlackElo "2567"]
[Result "0-1"]
[Round "05"]
[TimeControl "180+1"]
[Date "2022.06.14"]
[WhiteClock "0:00:02"]
[BlackClock "0:01:04"]

1. d4 {[%clk 0:03:00]}  Nf6 {[%clk 0:02:59]} 2. c4 {[%clk 0:03:00]}  g6 {[%clk 0:02:59]} 3. Nc3 {[%clk 0:02:59]}  Bg7 {[%clk 0:02:59]} 4. e4 {[%clk 0:02:59]}  d6 {[%clk 0:03:00]} 5. Nf3 {[%clk 0:02:59]}  O-O {[%clk 0:03:01]} 6. Be2 {[%clk 0:02:59]}  e5 {[%clk 0:03:01]} 7. O-O {[%clk 0:02:59]}  Nc6 {[%clk 0:03:00]} 8. d5 {[%clk 0:02:59]}  Ne7 {[%clk 0:03:01]} 9. Ne1 {[%clk 0:02:58]}  Nd7 {[%clk 0:03:00]} 10. Be3 {[%clk 0:02:58]}  f5 {[%clk 0:03:00]} 11. f3 {[%clk 0:02:58]}  f4 {[%clk 0:03:00]} 12. Bf2 {[%clk 0:02:59]}  g5 {[%clk 0:03:01]} 13. Nb5 {[%clk 0:02:59]}  b6 {[%clk 0:02:55]} 14. b4 {[%clk 0:02:57]}  Rf7 {[%clk 0:02:45]} 15. c5 {[%clk 0:02:53]}  bxc5 {[%clk 0:02:39]} 16. bxc5 {[%clk 0:02:52]}  Nxc5 {[%clk 0:02:39]} 17. Bxc5 {[%clk 0:02:44]}  dxc5 {[%clk 0:02:39]} 18. Nd3 {[%clk 0:02:37]}  c6 {[%clk 0:02:24]} 19. dxc6 {[%clk 0:02:26]}  Nxc6 {[%clk 0:01:59]} 20. Nxc5 {[%clk 0:02:12]}  Qb6 {[%clk 0:01:56]} 21. Rc1 {[%clk 0:02:07]}  Bf8 {[%clk 0:01:55]} 22. Qd5 {[%clk 0:01:27]}  Ba6 {[%clk 0:01:38]} 23. a4 {[%clk 0:01:03]}  Rd8 {[%clk 0:01:36]} 24. Qc4 {[%clk 0:01:02]}  Na5 {[%clk 0:01:31]} 25. Qc3 {[%clk 0:00:50]}  Rc8 {[%clk 0:01:27]} 26. Qxe5 {[%clk 0:00:45]}  Rxc5 {[%clk 0:01:26]} 27. Rxc5 {[%clk 0:00:40]}  Qxc5+ {[%clk 0:01:26]} 28. Qxc5 {[%clk 0:00:41]}  Bxc5+ {[%clk 0:01:27]} 29. Kh1 {[%clk 0:00:41]}  Rd7 {[%clk 0:01:21]} 30. h4 {[%clk 0:00:38]}  gxh4 {[%clk 0:01:20]} 31. Rc1 {[%clk 0:00:36]}  Bb6 {[%clk 0:01:20]} 32. e5 {[%clk 0:00:29]}  Re7 {[%clk 0:01:17]} 33. Bd3 {[%clk 0:00:16]}  Rxe5 {[%clk 0:01:15]} 34. Be4 {[%clk 0:00:16]}  Bxb5 {[%clk 0:01:14]} 35. axb5 {[%clk 0:00:15]}  Rxb5 {[%clk 0:01:14]} 36. Rd1 {[%clk 0:00:13]}  Kf8 {[%clk 0:01:11]} 37. Rd7 {[%clk 0:00:12]}  h5 {[%clk 0:01:08]} 38. Bg6 {[%clk 0:00:04]}  Rc5 {[%clk 0:01:05]} 39. Kh2 {[%clk 0:00:02]}  Rg5 {[%clk 0:01:04]} 0-1


[Site "https://www.chess.com"]

[Event "Titled Tuesday Blitz June 14 Late 2022"]
[White "Hjartarson, Johann"]
[Black "Beulen, Marcel"]
[WhiteFideId "2300044"]
[BlackFideId "1001450"]
[WhiteElo "2458"]
[BlackElo "2392"]
[Result "1-0"]
[Round "05"]
[TimeControl "180+1"]
[Date "2022.06.15"]
[WhiteClock "0:00:46"]
[BlackClock "0:00:27"]

1. e4 {[%clk 0:03:00]}  d5 {[%clk 0:02:59]} 2. exd5 {[%clk 0:03:00]}  Qxd5 {[%clk 0:03:00]} 3. Nc3 {[%clk 0:02:59]}  Qa5 {[%clk 0:03:00]} 4. d4 {[%clk 0:02:57]}  Nf6 {[%clk 0:03:00]} 5. Nf3 {[%clk 0:02:57]}  Bf5 {[%clk 0:02:59]} 6. Bc4 {[%clk 0:02:56]}  c6 {[%clk 0:02:59]} 7. Bd2 {[%clk 0:02:55]}  e6 {[%clk 0:02:58]} 8. Qe2 {[%clk 0:02:55]}  Bb4 {[%clk 0:02:57]} 9. O-O-O {[%clk 0:02:50]}  Nbd7 {[%clk 0:02:56]} 10. Ne5 {[%clk 0:02:45]}  Nxe5 {[%clk 0:02:50]} 11. dxe5 {[%clk 0:02:44]}  Nd5 {[%clk 0:02:50]} 12. Ne4 {[%clk 0:02:35]}  Bxd2+ {[%clk 0:02:26]} 13. Rxd2 {[%clk 0:02:33]}  Bxe4 {[%clk 0:02:25]} 14. Qxe4 {[%clk 0:02:32]}  O-O-O {[%clk 0:02:25]} 15. Rhd1 {[%clk 0:02:28]}  Nb6 {[%clk 0:02:20]} 16. Bb3 {[%clk 0:02:25]}  Rxd2 {[%clk 0:02:15]} 17. Rxd2 {[%clk 0:02:24]}  Rd8 {[%clk 0:02:15]} 18. Rxd8+ {[%clk 0:02:23]}  Kxd8 {[%clk 0:02:16]} 19. c3 {[%clk 0:02:23]}  g6 {[%clk 0:02:13]} 20. Qh4+ {[%clk 0:02:22]}  Ke8 {[%clk 0:02:09]} 21. Qd4 {[%clk 0:02:07]}  c5 {[%clk 0:01:44]} 22. Qd6 {[%clk 0:02:05]}  c4 {[%clk 0:01:28]} 23. Qb8+ {[%clk 0:02:04]}  Ke7 {[%clk 0:01:27]} 24. Qxb7+ {[%clk 0:02:04]}  Kf8 {[%clk 0:01:27]} 25. Bxc4 {[%clk 0:01:49]}  Qxe5 {[%clk 0:01:26]} 26. Bd3 {[%clk 0:01:30]}  Qf4+ {[%clk 0:01:21]} 27. Kc2 {[%clk 0:01:27]}  Qxf2+ {[%clk 0:01:20]} 28. Kb3 {[%clk 0:01:27]}  Nd5 {[%clk 0:01:20]} 29. Be4 {[%clk 0:01:21]}  Nf6 {[%clk 0:01:14]} 30. Bf3 {[%clk 0:01:20]}  Kg7 {[%clk 0:01:14]} 31. a4 {[%clk 0:01:18]}  g5 {[%clk 0:01:14]} 32. h3 {[%clk 0:01:15]}  h5 {[%clk 0:01:14]} 33. Qb5 {[%clk 0:01:10]}  Kg6 {[%clk 0:01:05]} 34. Qd3+ {[%clk 0:01:10]}  Kg7 {[%clk 0:01:00]} 35. Qd4 {[%clk 0:01:08]}  Qxd4 {[%clk 0:00:50]} 36. cxd4 {[%clk 0:01:08]}  Kf8 {[%clk 0:00:51]} 37. Kc4 {[%clk 0:01:07]}  Ke7 {[%clk 0:00:50]} 38. b4 {[%clk 0:01:07]}  Kd6 {[%clk 0:00:50]} 39. b5 {[%clk 0:01:07]}  g4 {[%clk 0:00:44]} 40. hxg4 {[%clk 0:01:06]}  hxg4 {[%clk 0:00:45]} 41. Be2 {[%clk 0:01:06]}  g3 {[%clk 0:00:45]} 42. Bf3 {[%clk 0:01:06]}  Nd7 {[%clk 0:00:43]} 43. a5 {[%clk 0:01:05]}  f6 {[%clk 0:00:41]} 44. b6 {[%clk 0:00:59]}  Nxb6+ {[%clk 0:00:27]} 45. axb6 {[%clk 0:00:58]}  axb6 {[%clk 0:00:28]} 46. Kb5 {[%clk 0:00:51]}  e5 {[%clk 0:00:28]} 47. dxe5+ {[%clk 0:00:47]}  fxe5 {[%clk 0:00:27]} 48. Kxb6 {[%clk 0:00:47]}  Ke6 {[%clk 0:00:26]} 49. Kc5 {[%clk 0:00:47]}  Kf5 {[%clk 0:00:26]} 50. Kd5 {[%clk 0:00:46]}  Kf4 {[%clk 0:00:27]} 51. Be4 {[%clk 0:00:46]} 1-0


[Site "https://www.chess.com"]

[Event "Titled Tuesday Blitz June 14 Late 2022"]
[White "Hoffmann, Asa"]
[Black "Yaksin, Oleg"]
[WhiteFideId "2001470"]
[BlackFideId "24105880"]
[WhiteElo "2117"]
[BlackElo "2256"]
[Result "0-1"]
[Round "05"]
[TimeControl "180+1"]
[Date "2022.06.14"]
[WhiteClock "0:00:10"]
[BlackClock "0:00:09"]

1. d4 {[%clk 0:02:41]}  Nf6 {[%clk 0:02:59]} 2. Bg5 {[%clk 0:02:36]}  e6 {[%clk 0:02:58]} 3. Nd2 {[%clk 0:02:34]}  h6 {[%clk 0:02:58]} 4. Bh4 {[%clk 0:02:34]}  d6 {[%clk 0:02:57]} 5. e3 {[%clk 0:02:34]}  Nbd7 {[%clk 0:02:55]} 6. Bd3 {[%clk 0:02:33]}  b6 {[%clk 0:02:51]} 7. f3 {[%clk 0:02:32]}  Bb7 {[%clk 0:02:51]} 8. e4 {[%clk 0:02:28]}  c5 {[%clk 0:02:50]} 9. c3 {[%clk 0:02:28]}  Be7 {[%clk 0:02:46]} 10. Ne2 {[%clk 0:02:27]}  g5 {[%clk 0:02:38]} 11. Bf2 {[%clk 0:02:26]}  h5 {[%clk 0:02:34]} 12. Qb3 {[%clk 0:02:20]}  Qc7 {[%clk 0:02:29]} 13. O-O-O {[%clk 0:02:17]}  cxd4 {[%clk 0:02:18]} 14. Bxd4 {[%clk 0:02:14]}  a6 {[%clk 0:02:16]} 15. Kb1 {[%clk 0:02:13]}  Nc5 {[%clk 0:02:07]} 16. Qc2 {[%clk 0:02:06]}  O-O-O {[%clk 0:02:05]} 17. Nb3 {[%clk 0:02:01]}  Kb8 {[%clk 0:01:52]} 18. Nxc5 {[%clk 0:01:53]}  bxc5 {[%clk 0:01:52]} 19. Be3 {[%clk 0:01:52]}  c4 {[%clk 0:01:52]} 20. Bxg5 {[%clk 0:01:45]}  cxd3 {[%clk 0:01:51]} 21. Qxd3 {[%clk 0:01:45]}  Rhg8 {[%clk 0:01:37]} 22. h4 {[%clk 0:01:44]}  Ne8 {[%clk 0:01:17]} 23. Bxe7 {[%clk 0:01:34]}  Qxe7 {[%clk 0:01:18]} 24. g3 {[%clk 0:01:33]}  Nf6 {[%clk 0:01:14]} 25. Rhg1 {[%clk 0:01:29]}  d5 {[%clk 0:00:46]} 26. e5 {[%clk 0:01:25]}  Nd7 {[%clk 0:00:46]} 27. f4 {[%clk 0:01:23]}  Nc5 {[%clk 0:00:46]} 28. Qe3 {[%clk 0:01:23]}  Ne4 {[%clk 0:00:46]} 29. Nd4 {[%clk 0:01:22]}  Qc5 {[%clk 0:00:40]} 30. Rdf1 {[%clk 0:01:13]}  Rg4 {[%clk 0:00:38]} 31. f5 {[%clk 0:01:12]}  Qe7 {[%clk 0:00:30]} 32. fxe6 {[%clk 0:01:08]}  fxe6 {[%clk 0:00:31]} 33. Qh6 {[%clk 0:01:05]}  Re8 {[%clk 0:00:25]} 34. Qxh5 {[%clk 0:01:03]}  Nd2+ {[%clk 0:00:23]} 35. Ka1 {[%clk 0:01:00]}  Rxd4 {[%clk 0:00:10]} 36. cxd4 {[%clk 0:00:48]}  Nxf1 {[%clk 0:00:10]} 37. Rxf1 {[%clk 0:00:47]}  Rc8 {[%clk 0:00:10]} 38. a3 {[%clk 0:00:45]}  Qc7 {[%clk 0:00:09]} 39. Qf3 {[%clk 0:00:44]}  Qc2 {[%clk 0:00:09]} 40. Qf2 {[%clk 0:00:43]}  Qe4 {[%clk 0:00:09]} 41. h5 {[%clk 0:00:42]}  Rh8 {[%clk 0:00:09]} 42. Qf6 {[%clk 0:00:39]}  Rxh5 {[%clk 0:00:08]} 43. Qxe6 {[%clk 0:00:39]}  Qxd4 {[%clk 0:00:07]} 44. Qd6+ {[%clk 0:00:36]}  Ka7 {[%clk 0:00:07]} 45. e6 {[%clk 0:00:35]}  Re5 {[%clk 0:00:06]} 46. e7 {[%clk 0:00:34]}  Re2 {[%clk 0:00:06]} 47. Rb1 {[%clk 0:00:33]}  Qe5 {[%clk 0:00:06]} 48. Qc5+ {[%clk 0:00:32]}  Kb8 {[%clk 0:00:06]} 49. g4 {[%clk 0:00:29]}  Qxe7 {[%clk 0:00:07]} 50. Qd4 {[%clk 0:00:29]}  Re4 {[%clk 0:00:07]} 51. Qc3 {[%clk 0:00:28]}  Rxg4 {[%clk 0:00:07]} 52. Rc1 {[%clk 0:00:27]}  Rc4 {[%clk 0:00:08]} 53. Qe1 {[%clk 0:00:26]}  Qxe1 {[%clk 0:00:08]} 54. Rxe1 {[%clk 0:00:26]}  Re4 {[%clk 0:00:08]} 55. Rd1 {[%clk 0:00:25]}  Kc7 {[%clk 0:00:09]} 56. b3 {[%clk 0:00:25]}  Kd6 {[%clk 0:00:10]} 57. Kb2 {[%clk 0:00:25]}  Re3 {[%clk 0:00:09]} 58. Kc2 {[%clk 0:00:25]}  Ke5 {[%clk 0:00:10]} 59. Rh1 {[%clk 0:00:23]}  d4 {[%clk 0:00:09]} 60. Rh5+ {[%clk 0:00:22]}  Kd6 {[%clk 0:00:09]} 61. Rh6+ {[%clk 0:00:22]}  Re6 {[%clk 0:00:07]} 62. Rh4 {[%clk 0:00:19]}  Be4+ {[%clk 0:00:06]} 63. Kd2 {[%clk 0:00:19]}  Ke5 {[%clk 0:00:07]} 64. b4 {[%clk 0:00:19]}  Rc6 {[%clk 0:00:07]} 65. a4 {[%clk 0:00:18]}  Rc2+ {[%clk 0:00:06]} 66. Kd1 {[%clk 0:00:18]}  Rb2 {[%clk 0:00:07]} 67. b5 {[%clk 0:00:17]}  axb5 {[%clk 0:00:07]} 68. a5 {[%clk 0:00:17]}  Ra2 {[%clk 0:00:07]} 69. Rh5+ {[%clk 0:00:16]}  Bf5 {[%clk 0:00:07]} 70. Kc1 {[%clk 0:00:15]}  Rxa5 {[%clk 0:00:07]} 71. Kb2 {[%clk 0:00:15]}  Ra4 {[%clk 0:00:07]} 72. Kb3 {[%clk 0:00:15]}  Rc4 {[%clk 0:00:08]} 73. Rg5 {[%clk 0:00:14]}  d3 {[%clk 0:00:08]} 74. Rg8 {[%clk 0:00:13]}  d2 {[%clk 0:00:08]} 75. Re8+ {[%clk 0:00:12]}  Be6 {[%clk 0:00:09]} 76. Rd8 {[%clk 0:00:12]}  Bd5 {[%clk 0:00:09]} 77. Kb2 {[%clk 0:00:10]}  d1=Q {[%clk 0:00:09]} 0-1


[Site "https://www.chess.com"]

[Event "Titled Tuesday Blitz June 14 Late 2022"]
[White "Huber, Benedikt"]
[Black "Swicarz, Maciej"]
[WhiteFideId "12923583"]
[BlackFideId "1113585"]
[WhiteElo "1979"]
[BlackElo "2049"]
[Result "0-1"]
[Round "05"]
[TimeControl "180+1"]
[Date "2022.06.15"]
[WhiteClock "0:00:02"]
[BlackClock "0:00:06"]

1. d4 {[%clk 0:03:00]}  Nf6 {[%clk 0:02:58]} 2. c4 {[%clk 0:03:00]}  e6 {[%clk 0:02:58]} 3. Nc3 {[%clk 0:03:00]}  Bb4 {[%clk 0:02:58]} 4. f3 {[%clk 0:03:00]}  d5 {[%clk 0:02:56]} 5. a3 {[%clk 0:03:00]}  Be7 {[%clk 0:02:52]} 6. e4 {[%clk 0:03:00]}  c5 {[%clk 0:02:48]} 7. e5 {[%clk 0:02:40]}  cxd4 {[%clk 0:02:48]} 8. Qxd4 {[%clk 0:02:33]}  Nc6 {[%clk 0:02:47]} 9. Qf4 {[%clk 0:02:34]}  Nd7 {[%clk 0:02:20]} 10. cxd5 {[%clk 0:02:27]}  exd5 {[%clk 0:02:21]} 11. Nxd5 {[%clk 0:02:21]}  Qa5+ {[%clk 0:02:19]} 12. Nc3 {[%clk 0:02:20]}  Ndxe5 {[%clk 0:02:15]} 13. Bb5 {[%clk 0:02:12]}  O-O {[%clk 0:02:11]} 14. Qa4 {[%clk 0:01:53]}  Qxa4 {[%clk 0:01:56]} 15. Bxa4 {[%clk 0:01:54]}  Nd4 {[%clk 0:01:46]} 16. Nge2 {[%clk 0:01:51]}  Nd3+ {[%clk 0:01:44]} 17. Kf1 {[%clk 0:01:50]}  Nxe2 {[%clk 0:01:43]} 18. Kxe2 {[%clk 0:01:47]}  Nxc1+ {[%clk 0:01:43]} 19. Rhxc1 {[%clk 0:01:43]}  Be6 {[%clk 0:01:40]} 20. Rd1 {[%clk 0:01:32]}  Bf6 {[%clk 0:01:38]} 21. Rac1 {[%clk 0:01:17]}  a6 {[%clk 0:01:37]} 22. Bd7 {[%clk 0:00:48]}  Bb3 {[%clk 0:01:28]} 23. Re1 {[%clk 0:00:29]}  Rfd8 {[%clk 0:01:25]} 24. Bf5 {[%clk 0:00:28]}  Bg5 {[%clk 0:01:18]} 25. Ne4 {[%clk 0:00:17]}  Bxc1 {[%clk 0:01:15]} 26. Rxc1 {[%clk 0:00:18]}  g6 {[%clk 0:01:12]} 27. Bh3 {[%clk 0:00:19]}  f5 {[%clk 0:01:06]} 28. Nc5 {[%clk 0:00:19]}  Re8+ {[%clk 0:00:58]} 29. Kf2 {[%clk 0:00:18]}  Bd5 {[%clk 0:00:57]} 30. g4 {[%clk 0:00:18]}  fxg4 {[%clk 0:00:48]} 31. Bxg4 {[%clk 0:00:18]}  Rad8 {[%clk 0:00:41]} 32. b4 {[%clk 0:00:17]}  h5 {[%clk 0:00:38]} 33. Bh3 {[%clk 0:00:15]}  Kh7 {[%clk 0:00:30]} 34. Rc3 {[%clk 0:00:14]}  Kh6 {[%clk 0:00:28]} 35. a4 {[%clk 0:00:09]}  Bc6 {[%clk 0:00:28]} 36. a5 {[%clk 0:00:09]}  Rd2+ {[%clk 0:00:27]} 37. Kg3 {[%clk 0:00:10]}  Re5 {[%clk 0:00:24]} 38. f4 {[%clk 0:00:08]}  Red5 {[%clk 0:00:19]} 39. Re3 {[%clk 0:00:08]}  Rd8 {[%clk 0:00:13]} 40. Bf1 {[%clk 0:00:05]}  Rb2 {[%clk 0:00:12]} 41. Ne6 {[%clk 0:00:05]}  Re8 {[%clk 0:00:11]} 42. Bh3 {[%clk 0:00:03]}  Rxb4 {[%clk 0:00:10]} 43. Rd3 {[%clk 0:00:04]}  Re4 {[%clk 0:00:06]} 44. Ng5 {[%clk 0:00:03]}  Re3+ {[%clk 0:00:06]} 45. Rxe3 {[%clk 0:00:02]}  Rxe3+ {[%clk 0:00:07]} 46. Kf2 {[%clk 0:00:03]}  Ra3 {[%clk 0:00:06]} 47. f5 {[%clk 0:00:02]}  Kxg5 {[%clk 0:00:06]} 0-1


[Site "https://www.chess.com"]

[Event "Titled Tuesday Blitz June 14 Late 2022"]
[White "Ibarra Jerez, Jose Carlos"]
[Black "Aldokhin, Ivan"]
[WhiteFideId "2226332"]
[BlackFideId "24115720"]
[WhiteElo "2628"]
[BlackElo "2231"]
[Result "1-0"]
[Round "05"]
[TimeControl "180+1"]
[Date "2022.06.14"]
[WhiteClock "0:00:26"]
[BlackClock "0:00:03"]

1. Nf3 {[%clk 0:02:55]}  Nf6 {[%clk 0:02:59]} 2. g3 {[%clk 0:02:55]}  g6 {[%clk 0:03:00]} 3. b3 {[%clk 0:02:55]}  Bg7 {[%clk 0:03:00]} 4. Bb2 {[%clk 0:02:56]}  O-O {[%clk 0:03:01]} 5. Bg2 {[%clk 0:02:57]}  a5 {[%clk 0:03:02]} 6. c4 {[%clk 0:02:55]}  a4 {[%clk 0:03:02]} 7. bxa4 {[%clk 0:02:55]}  d5 {[%clk 0:02:48]} 8. cxd5 {[%clk 0:02:52]}  Nxd5 {[%clk 0:02:47]} 9. Bxg7 {[%clk 0:02:42]}  Kxg7 {[%clk 0:02:48]} 10. O-O {[%clk 0:02:41]}  Nc6 {[%clk 0:02:45]} 11. Qb3 {[%clk 0:02:31]}  e5 {[%clk 0:02:16]} 12. Nxe5 {[%clk 0:02:19]}  Nxe5 {[%clk 0:02:16]} 13. Qxd5 {[%clk 0:02:13]}  Qxd5 {[%clk 0:02:10]} 14. Bxd5 {[%clk 0:02:13]}  Rxa4 {[%clk 0:02:00]} 15. Nc3 {[%clk 0:02:13]}  Ra5 {[%clk 0:01:43]} 16. d4 {[%clk 0:02:02]}  Nc6 {[%clk 0:01:26]} 17. e3 {[%clk 0:01:52]}  Nb4 {[%clk 0:01:16]} 18. Be4 {[%clk 0:01:43]}  f5 {[%clk 0:01:07]} 19. Bf3 {[%clk 0:01:39]}  c6 {[%clk 0:01:00]} 20. a3 {[%clk 0:01:37]}  Na6 {[%clk 0:00:40]} 21. a4 {[%clk 0:01:29]}  Be6 {[%clk 0:00:30]} 22. Rab1 {[%clk 0:01:28]}  Rf7 {[%clk 0:00:30]} 23. Rb6 {[%clk 0:01:26]}  Bc8 {[%clk 0:00:28]} 24. Rc1 {[%clk 0:01:22]}  Nc7 {[%clk 0:00:23]} 25. h4 {[%clk 0:00:56]}  h6 {[%clk 0:00:22]} 26. d5 {[%clk 0:00:48]}  cxd5 {[%clk 0:00:13]} 27. Nxd5 {[%clk 0:00:47]}  Nxd5 {[%clk 0:00:08]} 28. Bxd5 {[%clk 0:00:48]}  Rxd5 {[%clk 0:00:06]} 29. Rxc8 {[%clk 0:00:48]}  Ra5 {[%clk 0:00:04]} 30. Rc4 {[%clk 0:00:46]}  g5 {[%clk 0:00:04]} 31. h5 {[%clk 0:00:45]}  f4 {[%clk 0:00:02]} 32. exf4 {[%clk 0:00:40]}  gxf4 {[%clk 0:00:02]} 33. g4 {[%clk 0:00:41]}  f3 {[%clk 0:00:02]} 34. Kh2 {[%clk 0:00:40]}  Rd5 {[%clk 0:00:01]} 35. Rcb4 {[%clk 0:00:38]}  Rd2 {[%clk 0:00:01]} 36. Kg3 {[%clk 0:00:37]}  Rd1 {[%clk 0:00:01]} 37. Rxb7 {[%clk 0:00:36]}  Rg1+ {[%clk 0:00:01]} 38. Kh2 {[%clk 0:00:27]}  Rg2+ {[%clk 0:00:02]} 39. Kh3 {[%clk 0:00:27]}  Rxf2 {[%clk 0:00:02]} 40. Rxf7+ {[%clk 0:00:27]}  Kxf7 {[%clk 0:00:02]} 41. Kg3 {[%clk 0:00:27]}  Rf1 {[%clk 0:00:02]} 42. Rf4+ {[%clk 0:00:27]}  Kg7 {[%clk 0:00:02]} 43. Rxf3 {[%clk 0:00:28]}  Ra1 {[%clk 0:00:03]} 44. Rf4 {[%clk 0:00:27]}  Ra3+ {[%clk 0:00:04]} 45. Kf2 {[%clk 0:00:27]}  Kg8 {[%clk 0:00:02]} 46. Ke2 {[%clk 0:00:27]}  Kg7 {[%clk 0:00:03]} 47. Kd2 {[%clk 0:00:28]}  Kg8 {[%clk 0:00:02]} 48. Kc2 {[%clk 0:00:28]}  Ra1 {[%clk 0:00:02]} 49. Kb3 {[%clk 0:00:27]}  Rb1+ {[%clk 0:00:02]} 50. Kc4 {[%clk 0:00:26]}  Ra1 {[%clk 0:00:03]} 51. Kb5 {[%clk 0:00:26]}  Kg7 {[%clk 0:00:03]} 52. a5 {[%clk 0:00:26]}  Kg8 {[%clk 0:00:03]} 53. a6 {[%clk 0:00:26]} 1-0


[Site "https://www.chess.com"]

[Event "Titled Tuesday Blitz June 14 Late 2022"]
[White "Keller, Peter"]
[Black "Al-Tarboush, Ward"]
[WhiteFideId "1272105"]
[BlackFideId "7601450"]
[WhiteElo "2275"]
[BlackElo "2249"]
[Result "0-1"]
[Round "05"]
[TimeControl "180+1"]
[Date "2022.06.15"]
[WhiteClock "0:00:07"]
[BlackClock "0:00:03"]

1. d4 {[%clk 0:02:57]}  b6 {[%clk 0:03:00]} 2. Bf4 {[%clk 0:02:57]}  Bb7 {[%clk 0:02:59]} 3. e3 {[%clk 0:02:58]}  Nf6 {[%clk 0:02:59]} 4. Nf3 {[%clk 0:02:58]}  e6 {[%clk 0:02:59]} 5. h3 {[%clk 0:02:59]}  c5 {[%clk 0:02:57]} 6. c3 {[%clk 0:02:59]}  Be7 {[%clk 0:02:57]} 7. Bd3 {[%clk 0:02:59]}  O-O {[%clk 0:02:57]} 8. Nbd2 {[%clk 0:03:00]}  d6 {[%clk 0:02:55]} 9. Bh2 {[%clk 0:02:59]}  Nc6 {[%clk 0:02:53]} 10. O-O {[%clk 0:02:59]}  Qc7 {[%clk 0:02:49]} 11. Qe2 {[%clk 0:02:57]}  Rfe8 {[%clk 0:02:48]} 12. e4 {[%clk 0:02:54]}  e5 {[%clk 0:02:44]} 13. d5 {[%clk 0:02:52]}  Nb8 {[%clk 0:02:40]} 14. Nh4 {[%clk 0:02:48]}  g6 {[%clk 0:02:34]} 15. f4 {[%clk 0:02:44]}  Nxd5 {[%clk 0:02:10]} 16. Nxg6 {[%clk 0:02:18]}  hxg6 {[%clk 0:02:09]} 17. exd5 {[%clk 0:02:18]}  Bxd5 {[%clk 0:01:54]} 18. f5 {[%clk 0:02:13]}  c4 {[%clk 0:01:33]} 19. fxg6 {[%clk 0:02:03]}  Bg5 {[%clk 0:00:59]} 20. Ne4 {[%clk 0:01:24]}  cxd3 {[%clk 0:00:51]} 21. Qh5 {[%clk 0:01:24]}  f6 {[%clk 0:00:44]} 22. Nxg5 {[%clk 0:00:54]}  fxg5 {[%clk 0:00:38]} 23. Rf6 {[%clk 0:00:39]}  Qg7 {[%clk 0:00:10]} 24. Raf1 {[%clk 0:00:28]}  Be4 {[%clk 0:00:09]} 25. Qxg5 {[%clk 0:00:17]}  Nd7 {[%clk 0:00:08]} 26. Rxd6 {[%clk 0:00:16]}  Re7 {[%clk 0:00:05]} 27. h4 {[%clk 0:00:09]}  Rf8 {[%clk 0:00:04]} 28. Rxf8+ {[%clk 0:00:09]}  Nxf8 {[%clk 0:00:05]} 29. h5 {[%clk 0:00:09]}  Rd7 {[%clk 0:00:03]} 30. Bxe5 {[%clk 0:00:08]}  Qe7 {[%clk 0:00:03]} 31. Qxe7 {[%clk 0:00:05]}  Rxe7 {[%clk 0:00:04]} 32. Bd4 {[%clk 0:00:05]}  Rd7 {[%clk 0:00:04]} 33. Rxd7 {[%clk 0:00:05]}  Nxd7 {[%clk 0:00:05]} 34. Kf2 {[%clk 0:00:05]}  Bf5 {[%clk 0:00:04]} 35. g3 {[%clk 0:00:06]}  Nc5 {[%clk 0:00:02]} 36. h6 {[%clk 0:00:06]}  Bxg6 {[%clk 0:00:02]} 37. Ke3 {[%clk 0:00:06]}  Ne6 {[%clk 0:00:02]} 38. Be5 {[%clk 0:00:06]}  Nc5 {[%clk 0:00:02]} 39. b4 {[%clk 0:00:06]}  Nd7 {[%clk 0:00:03]} 40. a4 {[%clk 0:00:07]}  Nxe5 {[%clk 0:00:03]} 0-1


[Site "https://www.chess.com"]